fUSD/lending_fUSD_20240412
["ID","MTS","AMOUNT","RATE_DAILY","PERIOD"]
[322292905,1712939462108,-5000.0,0.000476,120]
[322292906,1712939462117,-5142.96440596,0.000476,2]
[322292907,1712939462126,-155.47,0.000476,5]
[322292908,1712939462136,-152.73,0.000476,5]
[322292909,1712939462146,-152.73,0.000476,5]
[322292910,1712939462156,-152.73,0.000476,5]
[322292911,1712939462169,-152.73,0.000476,5]
[322292912,1712939462186,-8000.0,0.00047602,120]
[322292913,1712939462203,-620.0,0.00047607,30]
[322292914,1712939462217,-297.0,0.00047607,30]
[322292915,1712939462241,-427.0,0.00047607,30]
[322292916,1712939462257,-200.0,0.00047643,25]
[322292917,1712939462275,-1000.0,0.00047643,50]
[322292918,1712939462291,-500.0,0.00047643,30]
[322292919,1712939462305,-500.0,0.00047643,30]
[322292920,1712939462318,-500.0,0.00047671,31]
[322292921,1712939462331,-500.0,0.00047671,31]
[322292922,1712939462345,-425.97664466,0.00047671,31]
[322292923,1712939462362,-500.0,0.00047671,31]
[322292924,1712939462377,-393.60491771,0.00047671,31]
[322292925,1712939462391,-500.0,0.00047671,31]
[322292926,1712939462403,-500.0,0.00047671,31]
[322292927,1712939462420,-500.0,0.00047671,31]
[322292928,1712939462436,-500.0,0.00047671,31]
[322292929,1712939462453,-508.57,0.00047671,31]
[322292930,1712939462468,-500.0,0.00047671,31]
[322292931,1712939462486,-561.65,0.00047671,31]
[322292932,1712939462500,-500.0,0.00047671,31]
[322292933,1712939462513,-500.0,0.00047671,31]
[322292934,1712939462530,-500.0,0.00047671,31]
[322292935,1712939462546,-661.69,0.00047671,2]
[322292936,1712939462559,-500.0,0.00047671,31]
[322292937,1712939462571,-1000.0,0.00047671,120]
[322292938,1712939462582,-500.0,0.00047671,31]
[322292939,1712939462598,-525.48,0.00047671,31]
[322292940,1712939462612,-500.0,0.00047671,31]
[322292941,1712939462629,-500.0,0.00047671,31]
[322292942,1712939462643,-500.0,0.00047671,31]
[322292943,1712939462657,-500.0,0.00047671,31]
[322292944,1712939462673,-579.42,0.00047671,31]
[322292945,1712939462687,-500.0,0.00047671,31]
[322292946,1712939462701,-500.0,0.00047671,31]
[322292947,1712939462716,-500.0,0.00047671,31]
[322292948,1712939462736,-500.0,0.00047671,31]
[322292949,1712939462752,-500.0,0.00047671,31]
[322292950,1712939462765,-500.0,0.00047671,31]
[322292951,1712939462780,-500.0,0.00047671,31]
[322292952,1712939462794,-161.12324,0.00047671,31]
[322292953,1712939462807,-500.0,0.00047671,31]
[322292954,1712939462821,-500.0,0.00047671,31]
[322292955,1712939462834,-500.0,0.00047671,31]
[322292956,1712939462848,-500.0,0.00047671,31]
[322292957,1712939462862,-718.46,0.00047671,31]
[322292958,1712939462875,-500.0,0.00047671,31]
[322292959,1712939462890,-500.0,0.00047671,31]
[322292960,1712939462903,-500.0,0.00047671,31]
[322292961,1712939462916,-171.90037669,0.00047671,31]
[322292962,1712939462929,-500.0,0.00047671,31]
[322292963,1712939462943,-500.0,0.00047671,31]
[322292964,1712939462955,-500.0,0.00047671,31]
[322292965,1712939462968,-500.0,0.00047671,31]
[322292966,1712939462987,-500.0,0.00047671,31]
[322292967,1712939462999,-500.0,0.00047671,31]
[322292968,1712939463012,-500.0,0.00047671,31]
[322292969,1712939463024,-402.05407907,0.00047671,31]
[322292970,1712939463038,-500.0,0.00047671,31]
[322292971,1712939463050,-500.0,0.00047671,31]
[322292972,1712939463062,-500.0,0.00047671,31]
[322292973,1712939463074,-500.0,0.00047671,31]
[322292974,1712939463086,-500.0,0.00047671,31]
[322292975,1712939463099,-500.0,0.00047671,31]
[322292976,1712939463111,-500.0,0.00047671,31]
[322292977,1712939463124,-500.0,0.00047671,31]
[322292978,1712939463135,-500.0,0.00047671,31]
[322292979,1712939463147,-500.0,0.00047671,31]
[322292980,1712939463159,-513.42,0.00047671,31]
[322292981,1712939463171,-150.0,0.00047671,31]
[322292982,1712939463184,-595.54,0.00047671,2]
[322292983,1712939463196,-586.75,0.00047671,31]
[322292984,1712939463208,-500.0,0.00047671,31]
[322292985,1712939463220,-500.0,0.00047671,31]
[322292986,1712939463239,-500.0,0.00047671,31]
[322292987,1712939463251,-500.0,0.00047671,31]
[322292988,1712939463264,-500.0,0.00047671,31]
[322292989,1712939463276,-500.0,0.00047671,31]
[322292990,1712939463289,-500.0,0.00047671,31]
[322292991,1712939463301,-500.0,0.00047671,31]
[322292992,1712939463313,-500.0,0.00047671,31]
[322292993,1712939463325,-704.2,0.00047671,31]
[322292994,1712939463337,-500.0,0.00047671,31]
[322292995,1712939463349,-349.35,0.00047671,31]
[322292996,1712939463361,-500.0,0.00047671,31]
[322292997,1712939463377,-546.18,0.00047671,31]
[322292998,1712939463389,-500.0,0.00047671,31]
[322292999,1712939463402,-500.0,0.00047671,31]
[322293000,1712939463414,-500.0,0.00047671,31]
[322293001,1712939463427,-500.0,0.00047671,31]
[322293002,1712939463441,-500.0,0.00047671,31]
[322293003,1712939463453,-500.0,0.00047671,31]
[322293004,1712939463465,-1352.77,0.00047671,31]
[322293005,1712939463481,-673.18,0.00047671,31]
[322293006,1712939463494,-336.56,0.00047671,31]
[322293007,1712939463506,-500.0,0.00047671,31]
[322293008,1712939463519,-500.0,0.00047671,31]
[322293009,1712939463535,-500.0,0.00047671,31]
[322293010,1712939463547,-629.37,0.00047671,31]
[322293011,1712939463560,-500.0,0.00047671,31]
[322293012,1712939463575,-500.0,0.00047671,31]
[322293013,1712939463587,-500.0,0.00047671,31]
[322293014,1712939463599,-500.0,0.00047671,31]
[322293015,1712939463611,-500.0,0.00047671,31]
[322293016,1712939463623,-500.0,0.00047671,31]
[322293017,1712939463634,-2203.64,0.00047671,31]
[322293018,1712939463646,-500.0,0.00047671,31]
[322293019,1712939463658,-500.0,0.00047671,7]
[322293020,1712939463670,-500.0,0.00047671,31]
[322293021,1712939463682,-1162.01,0.00047671,31]
[322293022,1712939463695,-2667.34,0.00047671,31]
[322293023,1712939463707,-716.23,0.00047671,31]
[322293024,1712939463722,-1151.02,0.00047671,31]
[322293025,1712939463735,-194.87,0.00047671,31]
[322293026,1712939463748,-500.0,0.00047671,31]
[322293027,1712939463761,-597.82,0.00047671,31]
[322293028,1712939463775,-528.08,0.00047671,31]
[322293029,1712939463787,-634.43,0.00047671,31]
[322293030,1712939463796,-500.0,0.00047671,31]
[322293031,1712939463806,-1280.3,0.00047671,31]
[322293032,1712939463816,-1116.79,0.00047671,31]
[322293033,1712939463825,-500.0,0.00047671,31]
[322293034,1712939463835,-500.0,0.00047671,31]
[322293035,1712939463845,-500.0,0.00047671,31]
[322293036,1712939463855,-7302.32,0.00047671,31]
[322293037,1712939464092,-500.0,0.00047671,31]
[322293038,1712939464102,-1813.94,0.00047671,31]
[322293039,1712939464112,-807.13,0.00047671,31]
[322293040,1712939464121,-500.0,0.00047671,31]
[322293041,1712939464130,-609.01,0.00047671,31]
[322293042,1712939464140,-519.31,0.00047671,31]
[322293043,1712939464149,-1010.89,0.00047671,31]
[322293044,1712939464158,-500.0,0.00047671,31]
[322293045,1712939464168,-500.0,0.00047671,31]
[322293046,1712939464177,-2090.34,0.00047671,31]
[322293047,1712939464187,-500.0,0.00047671,31]
[322293048,1712939464196,-500.0,0.00047671,31]
[322293049,1712939464206,-670.23,0.00047671,31]
[322293050,1712939464215,-520.06,0.00047671,31]
[322293051,1712939464226,-500.0,0.00047671,31]
[322293052,1712939464236,-500.0,0.00047671,31]
[322293053,1712939464245,-500.0,0.00047671,31]
[322293054,1712939464255,-500.0,0.00047671,31]
[322293055,1712939464264,-568.18,0.00047671,31]
[322293056,1712939464274,-500.0,0.00047671,31]
[322293057,1712939464283,-500.0,0.00047671,31]
[322293058,1712939464294,-500.0,0.00047671,31]
[322293059,1712939464305,-500.0,0.00047671,31]
[322293060,1712939464314,-500.0,0.00047671,31]
[322293061,1712939464324,-500.0,0.00047671,31]
[322293062,1712939464334,-1311.53,0.00047671,31]
[322293063,1712939464345,-1628.88,0.00047671,31]
[322293064,1712939464354,-515.58,0.00047671,31]
[322293065,1712939464363,-500.0,0.00047671,31]
[322293066,1712939464372,-500.0,0.00047671,31]
[322293067,1712939464381,-14006.78,0.00047671,31]
[322293068,1712939464391,-500.0,0.00047671,31]
[322293069,1712939464401,-500.0,0.00047671,31]
[322293070,1712939464411,-500.0,0.00047671,31]
[322293071,1712939464420,-352.1640926,0.00047671,31]
[322293072,1712939464431,-803.87,0.00047671,31]
[322293073,1712939464443,-500.0,0.00047671,31]
[322293074,1712939464453,-500.0,0.00047671,31]
[322293075,1712939464464,-500.0,0.00047671,31]
[322293076,1712939464475,-2680.68,0.00047671,31]
[322293077,1712939464484,-978.71,0.00047671,31]
[322293078,1712939464495,-500.0,0.00047671,31]
[322293079,1712939464504,-500.0,0.00047671,31]
[322293080,1712939464514,-500.0,0.00047671,31]
[322293081,1712939464525,-500.0,0.00047671,31]
[322293082,1712939464534,-2121.53,0.00047671,31]
[322293083,1712939464544,-500.0,0.00047671,31]
[322293084,1712939464557,-1410.1,0.00047671,31]
[322293085,1712939464567,-603.45,0.00047671,31]
[322293086,1712939464576,-2010.88,0.00047671,31]
[322293087,1712939464585,-500.0,0.00047671,31]
[322293088,1712939464595,-458.78085441,0.00047671,31]
[322293089,1712939464604,-500.0,0.00047671,31]
[322293090,1712939464613,-524.48,0.00047671,31]
[322293091,1712939464624,-500.0,0.00047671,31]
[322293092,1712939464635,-500.0,0.00047671,31]
[322293093,1712939464645,-2625.88,0.00047671,31]
[322293094,1712939464655,-895.41,0.00047671,31]
[322293095,1712939464665,-688.0,0.00047671,31]
[322293096,1712939464674,-500.0,0.00047671,31]
[322293097,1712939464685,-500.0,0.00047671,31]
[322293098,1712939464694,-2788.58,0.00047671,31]
[322293099,1712939464703,-1235.34,0.00047671,31]
[322293100,1712939464713,-665.73,0.00047671,31]
[322293101,1712939464723,-1020.56,0.00047671,31]
[322293102,1712939464733,-819.11,0.00047671,31]
[322293103,1712939464742,-565.07,0.00047671,31]
[322293104,1712939464751,-500.0,0.00047671,31]
[322293105,1712939464761,-920.52,0.00047671,31]
[322293106,1712939464771,-500.0,0.00047671,31]
[322293107,1712939464780,-559.96,0.00047671,31]
[322293108,1712939464791,-584.81,0.00047671,31]
[322293109,1712939464801,-6172.84,0.00047671,31]
[322293110,1712939464811,-1006.65,0.00047671,31]
[322293111,1712939464820,-502.19,0.00047671,31]
[322293112,1712939464830,-1224.43,0.00047671,31]
[322293113,1712939464840,-500.0,0.00047671,31]
[322293114,1712939464850,-291.25,0.00047671,31]
[322293115,1712939464859,-701.12,0.00047671,31]
[322293116,1712939464869,-3794.47,0.00047671,31]
[322293117,1712939464878,-500.0,0.00047671,31]
[322293118,1712939464887,-500.0,0.00047671,31]
[322293119,1712939464896,-795.66,0.00047671,31]
[322293120,1712939464906,-608.21,0.00047671,31]
[322293121,1712939464916,-938.69,0.00047671,31]
[322293122,1712939464925,-500.0,0.00047671,31]
[322293123,1712939464935,-1074.92,0.00047671,31]
[322293124,1712939464944,-705.22,0.00047671,31]
[322293125,1712939464954,-926.87,0.00047671,31]
[322293126,1712939464963,-500.0,0.00047671,31]
[322293127,1712939464975,-2317.31,0.00047671,31]
[322293128,1712939464984,-500.0,0.00047671,31]
[322293129,1712939464994,-500.0,0.00047671,31]
[322293130,1712939465004,-566.69,0.00047671,31]
[322293131,1712939465014,-550.45,0.00047671,31]
[322293132,1712939465024,-1028.71,0.00047671,31]
[322293133,1712939465037,-500.0,0.00047671,31]
[322293134,1712939465047,-500.0,0.00047671,31]
[322293135,1712939465057,-1045.05,0.00047671,31]
[322293136,1712939465067,-500.0,0.00047671,31]
[322293137,1712939465077,-500.0,0.00047671,31]
[322293138,1712939465087,-1536.84,0.00047671,31]
[322293139,1712939465098,-500.0,0.00047671,31]
[322293140,1712939465108,-500.0,0.00047671,31]
[322293141,1712939465118,-1599.82,0.00047671,31]
[322293142,1712939465127,-886.03,0.00047671,31]
[322293143,1712939465138,-500.0,0.00047671,31]
[322293144,1712939465148,-593.38,0.00047671,21]
[322293145,1712939465158,-500.0,0.00047671,31]
[322293146,1712939465168,-868.49,0.00047671,31]
[322293147,1712939465178,-995.51,0.00047671,31]
[322293148,1712939465187,-500.0,0.00047671,31]
[322293149,1712939465197,-753.01,0.00047671,31]
[322293150,1712939465207,-660.73,0.00047671,31]
[322293151,1712939465217,-500.0,0.00047671,31]
[322293152,1712939465228,-500.0,0.00047671,31]
[322293153,1712939465238,-500.0,0.00047671,31]
[322293154,1712939465248,-2246.9,0.00047671,31]
[322293155,1712939465258,-500.0,0.00047671,31]
[322293156,1712939465267,-500.0,0.00047671,31]
[322293157,1712939465278,-206.34475499,0.00047671,31]
[322293158,1712939465288,-8000.0,0.00047688,120]
[322293159,1712939465298,-5000.0,0.000477,120]
[322293160,1712939465308,-153.94987676,0.0004771,30]
[322293161,1712939465319,-8000.0,0.00047774,120]
[322293162,1712939465329,-3545.92,0.00047775,120]
[322293163,1712939465340,-5000.0,0.000478,120]
[322293164,1712939465350,-516.07,0.00047842,30]
[322293165,1712939465360,-150.0,0.00047848,60]
[322293166,1712939465370,-154.36695506,0.00047856,30]
[322293167,1712939465382,-8000.0,0.0004786,120]
[322293168,1712939465391,-481.0,0.000479,35]
[322293169,1712939465402,-159.55,0.000479,7]
[322293170,1712939465412,-10500.0,0.000479,17]
[322293171,1712939465422,-5000.0,0.000479,120]
[322293172,1712939465432,-1116.30948635,0.00047902,43]
[322293173,1712939465443,-500.0,0.00047945,31]
[322293174,1712939465453,-500.0,0.00047945,31]
[322293175,1712939465463,-500.0,0.00047945,31]
[322293176,1712939465474,-500.0,0.00047945,31]
[322293177,1712939465484,-500.0,0.00047945,31]
[322293178,1712939465493,-500.0,0.00047945,31]
[322293179,1712939465504,-500.0,0.00047945,31]
[322293180,1712939465514,-508.57,0.00047945,31]
[322293181,1712939465526,-500.0,0.00047945,31]
[322293182,1712939465535,-561.65,0.00047945,31]
[322293183,1712939465546,-500.0,0.00047945,31]
[322293184,1712939465561,-500.0,0.00047945,31]
[322293185,1712939465574,-500.0,0.00047945,31]
[322293186,1712939465586,-661.69,0.00047945,2]
[322293187,1712939465597,-500.0,0.00047945,31]
[322293188,1712939465609,-1000.0,0.00047945,120]
[322293189,1712939465622,-500.0,0.00047945,31]
[322293190,1712939465636,-525.48,0.00047945,31]
[322293191,1712939465649,-500.0,0.00047945,31]
[322293192,1712939465661,-500.0,0.00047945,31]
[322293193,1712939465673,-500.0,0.00047945,31]
[322293194,1712939465685,-153.69544486,0.00047945,31]
[322293195,1712939465697,-579.42,0.00047945,31]
[322293196,1712939465709,-500.0,0.00047945,31]
[322293197,1712939465723,-500.0,0.00047945,31]
[322293198,1712939465739,-500.0,0.00047945,31]
[322293199,1712939465752,-264.21253168,0.00047945,31]
[322293200,1712939465766,-500.0,0.00047945,31]
[322293201,1712939465777,-500.0,0.00047945,31]
[322293202,1712939465789,-500.0,0.00047945,31]
[322293203,1712939465801,-500.0,0.00047945,31]
[322293204,1712939465814,-500.0,0.00047945,31]
[322293205,1712939465826,-500.0,0.00047945,31]
[322293206,1712939465838,-500.0,0.00047945,31]
[322293207,1712939465849,-718.46,0.00047945,31]
[322293208,1712939465861,-500.0,0.00047945,31]
[322293209,1712939465872,-500.0,0.00047945,31]
[322293210,1712939465883,-500.0,0.00047945,31]
[322293211,1712939465894,-500.0,0.00047945,31]
[322293212,1712939465904,-500.0,0.00047945,31]
[322293213,1712939465914,-500.0,0.00047945,31]
[322293214,1712939465925,-500.0,0.00047945,31]
[322293215,1712939465935,-500.0,0.00047945,31]
[322293216,1712939465945,-500.0,0.00047945,31]
[322293217,1712939465955,-500.0,0.00047945,31]
[322293218,1712939465965,-500.0,0.00047945,31]
[322293219,1712939465980,-500.0,0.00047945,31]
[322293220,1712939465990,-500.0,0.00047945,31]
[322293221,1712939466000,-500.0,0.00047945,31]
[322293222,1712939466010,-500.0,0.00047945,31]
[322293223,1712939466020,-500.0,0.00047945,31]
[322293224,1712939466031,-500.0,0.00047945,31]
[322293225,1712939466041,-500.0,0.00047945,31]
[322293226,1712939466051,-182.96021719,0.00047945,31]
[322293227,1712939466061,-513.42,0.00047945,31]
[322293228,1712939466071,-150.0,0.00047945,31]
[322293229,1712939466082,-595.54,0.00047945,2]
[322293230,1712939466093,-586.75,0.00047945,31]
[322293231,1712939466103,-500.0,0.00047945,31]
[322293232,1712939466113,-500.0,0.00047945,31]
[322293233,1712939466123,-500.0,0.00047945,31]
[322293234,1712939466133,-500.0,0.00047945,31]
[322293235,1712939466143,-500.0,0.00047945,31]
[322293236,1712939466153,-500.0,0.00047945,31]
[322293237,1712939466163,-500.0,0.00047945,31]
[322293238,1712939466173,-500.0,0.00047945,31]
[322293239,1712939466182,-500.0,0.00047945,31]
[322293240,1712939466192,-704.2,0.00047945,31]
[322293241,1712939466202,-500.0,0.00047945,31]
[322293242,1712939466212,-500.0,0.00047945,31]
[322293243,1712939466225,-546.18,0.00047945,31]
[322293244,1712939466236,-566.63224137,0.00047945,31]
[322293245,1712939466246,-500.0,0.00047945,31]
[322293246,1712939466256,-500.0,0.00047945,31]
[322293247,1712939466267,-500.0,0.00047945,31]
[322293248,1712939466276,-500.0,0.00047945,31]
[322293249,1712939466287,-500.0,0.00047945,31]
[322293250,1712939466296,-1352.77,0.00047945,31]
[322293251,1712939466307,-673.18,0.00047945,31]
[322293252,1712939466318,-500.0,0.00047945,31]
[322293253,1712939466328,-500.0,0.00047945,31]
[322293254,1712939466339,-500.0,0.00047945,31]
[322293255,1712939466349,-629.37,0.00047945,31]
[322293256,1712939466359,-500.0,0.00047945,31]
[322293257,1712939466369,-500.0,0.00047945,31]
[322293258,1712939466378,-500.0,0.00047945,31]
[322293259,1712939466403,-500.0,0.00047945,31]
[322293260,1712939466412,-500.0,0.00047945,31]
[322293261,1712939466422,-500.0,0.00047945,31]
[322293262,1712939466434,-2203.64,0.00047945,31]
[322293263,1712939466444,-500.0,0.00047945,31]
[322293264,1712939466454,-500.0,0.00047945,7]
[322293265,1712939466463,-500.0,0.00047945,31]
[322293266,1712939466475,-1162.01,0.00047945,31]
[322293267,1712939466485,-2667.34,0.00047945,31]
[322293268,1712939466495,-716.23,0.00047945,31]
[322293269,1712939466505,-1151.02,0.00047945,31]
[322293270,1712939466516,-500.0,0.00047945,31]
[322293271,1712939466536,-597.82,0.00047945,31]
[322293272,1712939466550,-634.43,0.00047945,31]
[322293273,1712939466563,-500.0,0.00047945,31]
[322293274,1712939466575,-1280.3,0.00047945,31]
[322293275,1712939466585,-1116.79,0.00047945,31]
[322293276,1712939466595,-500.0,0.00047945,31]
[322293277,1712939466607,-500.0,0.00047945,31]
[322293278,1712939466617,-500.0,0.00047945,31]
[322293279,1712939466628,-7302.32,0.00047945,31]
[322293280,1712939466638,-500.0,0.00047945,31]
[322293281,1712939466649,-1813.94,0.00047945,31]
[322293282,1712939466660,-807.13,0.00047945,31]
[322293283,1712939466670,-500.0,0.00047945,31]
[322293284,1712939466681,-609.01,0.00047945,31]
[322293285,1712939466691,-519.31,0.00047945,31]
[322293286,1712939466702,-1010.89,0.00047945,31]
[322293287,1712939466713,-500.0,0.00047945,31]
[322293288,1712939466727,-500.0,0.00047945,31]
[322293289,1712939466737,-2090.34,0.00047945,31]
[322293290,1712939466747,-500.0,0.00047945,31]
[322293291,1712939466757,-500.0,0.00047945,31]
[322293292,1712939466767,-670.23,0.00047945,31]
[322293293,1712939466777,-520.06,0.00047945,31]
[322293294,1712939466787,-500.0,0.00047945,31]
[322293295,1712939466797,-500.0,0.00047945,31]
[322293296,1712939466807,-500.0,0.00047945,31]
[322293297,1712939466818,-500.0,0.00047945,31]
[322293298,1712939466829,-568.18,0.00047945,31]
[322293299,1712939466839,-500.0,0.00047945,31]
[322293300,1712939466850,-500.0,0.00047945,31]
[322293301,1712939466861,-500.0,0.00047945,31]
[322293302,1712939466873,-500.0,0.00047945,31]
[322293303,1712939466884,-500.0,0.00047945,31]
[322293304,1712939466894,-500.0,0.00047945,31]
[322293305,1712939466904,-1311.53,0.00047945,31]
[322293306,1712939466914,-1628.88,0.00047945,31]
[322293307,1712939466926,-515.58,0.00047945,31]
[322293308,1712939466936,-500.0,0.00047945,31]
[322293309,1712939466946,-500.0,0.00047945,31]
[322293310,1712939466956,-14006.78,0.00047945,31]
[322293311,1712939466966,-500.0,0.00047945,31]
[322293312,1712939466978,-500.0,0.00047945,31]
[322293313,1712939466988,-500.0,0.00047945,31]
[322293314,1712939466998,-803.87,0.00047945,31]
[322293315,1712939467008,-500.0,0.00047945,31]
[322293316,1712939467020,-500.0,0.00047945,31]
[322293317,1712939467030,-500.0,0.00047945,31]
[322293318,1712939467040,-2680.68,0.00047945,31]
[322293319,1712939467050,-978.71,0.00047945,31]
[322293320,1712939467063,-500.0,0.00047945,31]
[322293321,1712939467073,-500.0,0.00047945,31]
[322293322,1712939467083,-500.0,0.00047945,31]
[322293323,1712939467094,-500.0,0.00047945,31]
[322293324,1712939467103,-2121.53,0.00047945,31]
[322293325,1712939467113,-500.0,0.00047945,31]
[322293326,1712939467123,-1410.1,0.00047945,31]
[322293327,1712939467133,-603.45,0.00047945,31]
[322293328,1712939467143,-2010.88,0.00047945,31]
[322293329,1712939467152,-500.0,0.00047945,31]
[322293330,1712939467162,-524.48,0.00047945,31]
[322293331,1712939467172,-500.0,0.00047945,31]
[322293332,1712939467182,-500.0,0.00047945,31]
[322293333,1712939467192,-2625.88,0.00047945,31]
[322293334,1712939467201,-895.41,0.00047945,31]
[322293335,1712939467211,-688.0,0.00047945,31]
[322293336,1712939467221,-500.0,0.00047945,31]
[322293337,1712939467234,-500.0,0.00047945,31]
[322293338,1712939467244,-2788.58,0.00047945,31]
[322293339,1712939467254,-1235.34,0.00047945,31]
[322293340,1712939467264,-665.73,0.00047945,31]
[322293341,1712939467275,-1020.56,0.00047945,31]
[322293342,1712939467286,-819.11,0.00047945,31]
[322293343,1712939467297,-565.07,0.00047945,31]
[322293344,1712939467307,-500.0,0.00047945,31]
[322293345,1712939467318,-920.52,0.00047945,31]
[322293346,1712939467329,-500.0,0.00047945,31]
[322293347,1712939467339,-584.81,0.00047945,31]
[322293348,1712939467350,-6172.84,0.00047945,31]
[322293349,1712939467360,-1006.65,0.00047945,31]
[322293350,1712939467370,-502.19,0.00047945,31]
[322293351,1712939467380,-1224.43,0.00047945,31]
[322293352,1712939467390,-500.0,0.00047945,31]
[322293353,1712939467402,-701.12,0.00047945,31]
[322293354,1712939467412,-3794.47,0.00047945,31]
[322293355,1712939467422,-500.0,0.00047945,31]
[322293356,1712939467432,-500.0,0.00047945,31]
[322293357,1712939467442,-795.66,0.00047945,31]
[322293358,1712939467453,-608.21,0.00047945,31]
[322293359,1712939467465,-938.69,0.00047945,31]
[322293360,1712939467477,-500.0,0.00047945,31]
[322293361,1712939467488,-1074.92,0.00047945,31]
[322293362,1712939467499,-705.22,0.00047945,31]
[322293363,1712939467659,-926.87,0.00047945,31]
[322293364,1712939467695,-500.0,0.00047945,31]
[322293365,1712939467705,-2317.31,0.00047945,31]
[322293366,1712939467716,-218.95011364,0.00047945,31]
[322293367,1712939467727,-500.0,0.00047945,31]
[322293368,1712939467737,-566.69,0.00047945,31]
[322293369,1712939467747,-550.45,0.00047945,31]
[322293370,1712939467758,-1028.71,0.00047945,31]
[322293371,1712939467768,-500.0,0.00047945,31]
[322293372,1712939467779,-500.0,0.00047945,31]
[322293373,1712939467789,-1045.05,0.00047945,31]
[322293374,1712939467800,-500.0,0.00047945,31]
[322293375,1712939467811,-500.0,0.00047945,31]
[322293376,1712939467822,-1536.84,0.00047945,31]
[322293377,1712939467833,-500.0,0.00047945,31]
[322293378,1712939467843,-500.0,0.00047945,31]
[322293379,1712939467854,-1599.82,0.00047945,31]
[322293380,1712939467865,-886.03,0.00047945,31]
[322293381,1712939467876,-500.0,0.00047945,31]
[322293382,1712939467887,-593.38,0.00047945,21]
[322293383,1712939467897,-500.0,0.00047945,31]
[322293384,1712939467908,-868.49,0.00047945,31]
[322293385,1712939467919,-995.51,0.00047945,31]
[322293386,1712939467929,-500.0,0.00047945,31]
[322293387,1712939467939,-753.01,0.00047945,31]
[322293388,1712939467950,-660.73,0.00047945,31]
[322293389,1712939467960,-500.0,0.00047945,31]
[322293390,1712939467970,-500.0,0.00047945,31]
[322293391,1712939467982,-500.0,0.00047945,31]
[322293392,1712939467993,-2246.9,0.00047945,31]
[322293393,1712939468003,-500.0,0.00047945,31]
[322293394,1712939468013,-500.0,0.00047945,31]
[322293395,1712939468024,-8000.0,0.00047946,120]
[322293396,1712939468034,-500.0,0.0004797,3]
[322293397,1712939468045,-65914.30499215,0.0004797,15]
[322293398,1712939468055,-700.0,0.0004797,3]
[322293399,1712939468066,-111096.59340141,0.0004797,15]
[322293400,1712939468076,-100000.0,0.00048,48]
[322293401,1712939468085,-6151.66861264,0.00048,30]
[322293402,1712939468095,-163.51328556,0.00048,120]
[322293403,1712939468105,-2204.840167,0.00048,30]
[322293404,1712939468114,-224.23333333,0.00048,120]